{"text_format":"3","workbook":"xlsx","n_sheets":1,"sheets":["Sheet1"],"not_rendered":{"defined_names":2},"read":"whole","date_system":"1900"}

{"sheet":"Sheet1","index":0,"n_rows":67,"n_cols":10,"rows_kept":67,"merged":[[0,0,0,9],[1,0,2,0],[1,1,2,1],[1,2,2,2],[1,3,2,3],[1,4,2,4],[1,5,2,5],[1,6,1,8],[1,9,2,9],[52,0,57,0],[52,1,57,1],[52,2,55,2],[53,5,55,5],[58,0,65,0],[58,1,65,1],[58,2,63,2],[59,5,61,5],[66,0,66,1]]}
["2026年柳州市工人医院/广西医科大学第四附属医院\n业务骨干人才需求计划表"]
["序号","科室名称","岗位","备注","专业要求","其他说明","人数（学历）",null,null,"岗位合计"]
[{"$nulls":6},"硕士及以上","本科及以上","大专及以上"]
[1,"急诊医学科","医师岗","急需紧缺专业","1.研究生：急诊医学、重症医学；\n2.本科：临床医学类","1.研究生优先；\n2.有科研经历和文体特长者优先。",2,2,0,{"$f":"SUM(G4:I4)","v":4}]
[2,"神经内科","医师岗",null,"神经病学","神经介入方向或神经变性病方向",1,0,0,1]
[3,"心脏重症监护病房（CCU）","医师岗",null,"内科学、临床医学","该岗位更适合男性。有心内科工作经验、科研、文体、特长者优先考虑，有冠脉介入经验者优先考虑。",1,0,0,1]
[4,"消化内科","医师岗",null,"内科学","消化内科方向优先",2,0,0,2]
[5,"肿瘤科","医师岗",null,"肿瘤学、放射肿瘤学","1.肿瘤一二病区(1人):微创、介入专业，或放化疗专业愿意从事微创介入方向；\n2.肿瘤三五病区(1人):头颈乳腺肿瘤专业方向；\n3.肿瘤六七病区(2人):胸部泌尿系肿瘤专业方向",4,0,0,4]
[6,"感染性疾病科","医师岗","急需紧缺专业","临床医学类",null,0,1,0,1]
[7,"儿科","医师岗",null,"儿科学","",2,0,0,2]
[8,"综合内科","医师岗",null,"重症医学、急诊医学、全科医学、内科学",null,2,0,0,2]
[9,"康复医学科","医师岗",null,"康复医学与理疗学","",1,0,0,{"$f":"SUM(G12:I12)","v":1}]
[10,"手足踝外科病区","医师岗",null,"临床医学、外科学","创伤手外科学方向优先",2,0,0,2]
[11,"运动医学/肩肘外科","医师岗",null,"运动医学、骨科学","1.运动医学、运动康复方向优先。\n2.有运动康复、体能管理、赛事保障等社会实践优先，有良好的科研基础或有文体特长，擅长多媒体制作与健康传播者优先。",2,0,0,2]
[12,"关节外科/骨肿瘤科","医师岗",null,"骨科学","1.其中1人骨肿瘤方向优先；\n2.有良好的科研基础或有文体特长，擅长多媒体制作与健康传播者优先。",2,0,0,2]
[13,"疼痛科","医师岗",null,"临床医学、骨科学、外科学","",2,0,0,2]
[14,"小儿骨科","医师岗",null,"儿外科学、骨科学","有良好的科研基础，有文体特长、擅长利用多媒体做健康科普者优先。",1,0,0,1]
[15,"中医骨科","医师岗",null,"中医学、中西医结合、中医骨伤科学","中共党员优先",2,0,0,2]
[16,"普通外科二病区（肝胆胰脾）","医师岗",null,"外科学","有科研基础及成果者优先",1,0,0,1]
[17,"普通外科三病区","医师岗",null,"外科学","血管外科方向优先",2,0,0,2]
[18,"普通外科五病区","医师岗",null,"外科学","1.甲状腺方向优先；\n2.有科研能力的学术型硕士优先（须取得住培证）；\n3.有文体特长者优先。",2,0,0,2]
[19,"普通外科六病区","医师岗",null,"中医外科学","要求通过英语六级，限应届毕业生",1,0,0,1]
[20,"胸外科病区","医师岗",null,"外科学、临床医学","胸心外科方向",2,0,0,2]
[21,"神经外科","医师岗",null,"外科学","神经外科方向优先",1,0,0,1]
[22,"妇科二病区","医师岗",null,"妇产科学","学术型研究生，且取得住培证",1,0,0,1]
[23,"妇科三病区","医师岗",null,"妇产科学","中共党员优先，生殖医学方向、科研能力突出、具有SCI2区及以上级别论文第一作者发表经验者优先。",1,0,0,1]
[24,"产科","医师岗",null,"妇产科学","产科或产前诊断方向优先",1,0,0,1]
[25,"口腔科","医师岗","颌面外科方向为急需紧缺专业","口腔医学类","正畸方向1名，其余4名无亚专业方向限制。",4,1,0,5]
[26,"眼视光室","医师岗",null,"眼视光医学","",1,0,0,1]
[27,"麻醉科","医师岗","急需紧缺专业","麻醉学","",2,0,0,2]
[28,"重症医学科（ICU）","医师岗","急需紧缺专业","重症医学、临床医学、内科学、神经病学、外科学、急诊医学、麻醉学、麻醉医学","1.研究生优先；\n2.重症医学、临床医学、内科学、外科学、急诊医学专业优先。",0,3,0,3]
[29,"皮肤性病科","医师岗",null,"皮肤病与性病学","要求通过英语六级，限应届毕业生，科研能力强。",2,0,0,2]
[30,"医疗美容科一区","医师岗",null,"皮肤病与性病学",null,1,0,0,1]
[31,"医学影像科","医师岗",null,"放射影像学",null,2,0,0,2]
[32,"核医学科（ECT、PET-CT）","医师岗",null,"临床医学类、核医学、影像医学与核医学","",1,0,0,1]
[33,"超声医学科","医师岗","急需紧缺专业","1、研究生：超声医学、影像医学与核医学、临床医学；\n2、本科：临床医学、医学影像学","1.211或985大学优先；\n2.科研能力强者优先。",2,2,0,4]
[34,"病理科","医师岗",null,"临床病理、临床医学","1.副高及以上职称且有执业医师资格；\n2.从事临床病理诊断至少10年；\n3.以第一作者或通讯作者发表过SCI论著或综述1篇；4.有教师资格证优先。\n5.副高职称年龄可放宽到40岁及以下。",1,0,0,1]
[35,"护理岗","护理岗",null,"护理类",null,1,16,0,17]
[36,"肿瘤科","技师岗",null,"医学影像学、医学影像技术、生物医学工程、核医学、核物理、应用物理学、辐射防护与环境工程等相关物理专业","1.放疗技师2人，专业要求：医学影像学；2.剂量师1人，专业要求：医学影像技术、生物医学工程、核医学、核物理、应用物理学、辐射防护与环境工程等相关物理专业",0,3,0,{"$f":"SUM(G39:I39)","v":3}]
[37,"康复医学科","技师岗",null,"医学技术与特种医学类（康复方向）","具备技师资格证",1,0,0,1]
[38,"中医科","技师岗",null,"中医学、针灸推拿学","",0,1,0,1]
[39,"中医骨科","技师岗",null,"中医学、针灸推拿学","",0,1,0,1]
[40,"眼视光室","技师岗",null,"眼视光医学",null,0,1,0,1]
[41,"病理科","技师岗",null,"医学技术、临床病理、临床医学类","1.具备技师证或住培证，无技师证者需从事病理技师工作1年及以上，且熟练掌握病理常规、细胞、冰冻、免疫组化技术；\n2.要求以第一作者或通讯作者发表过SCI论著或综述1篇；\n3.医学实验技术方向优先。",1,0,0,1]
[42,"医学检验科","技师岗",null,"临床医学类、医学技术与特种医学类","",2,0,0,2]
[43,"医学影像科","技师岗",null,"医学影像技术、医学影像学",null,0,2,0,2]
[44,"医院办公室","职能后勤岗",null,"社会医学与卫生事业管理、公共管理类、人力资源管理、图书情报与档案管理类、中国汉语言文学及文秘类、新闻学","限应届毕业生，中共党员优先。具有公文写作能力、文体特长者优先考虑。",1,0,0,1]
[45,"运营绩效管理科","职能后勤岗",null,"管理会计、成本会计、财务管理、会计学","1.非应届毕业生，有中级职称（会计师）优先；\n2.有注册会计师资质的优先。",1,0,0,1]
[46,"泌尿外科","专科秘书岗",null,"公共管理类、新闻传播学类、社会学类","有文案编辑及微信公众号管理经验，中共党员优先。",0,1,0,1]
[47,"科研科\n（骨科项目组）","科研助理岗",null,"基础医学类、临床医学类、公共卫生与预防医学类、统计学类、生物医学工程类","1.生物统计学、流行病与卫生统计学专业优先；2.该岗位建立的劳动关系随项目结束而解除",0,1,0,1]
[48,"鹅山社区卫生服务中心","医师岗",null,"中医学、中西医结合临床、针灸推拿学","取得执业医师证；取得中医全科规培证优先考虑，熟悉基层工作，能胜任全科门诊工作者优先",0,2,0,2]
[49,"天马社区卫生服务中心","医师岗",null,"中医儿科学",null,0,1,0,1]
[50,"五里亭社区卫生服务中心","医师岗",null,"医学影像学","B超方向，具有医师资格证。年龄放宽至40岁及以下",0,1,0,1]
[{"$nulls":4},"中医儿科学、中医妇科学","具有医师资格证。",0,1,0,1]
[{"$nulls":4},"针灸推拿学",null,0,1,0,1]
[{"$nulls":4},"全科医学",null,0,1,0,1]
[null,null,"技师岗",null,"医学影像技术","具有相应执业资格",0,1,0,1]
[null,null,"药师岗",null,"药学","具有相应执业资格",0,1,0,1]
[51,"箭盘山社区卫生服务中心","医师岗",null,"临床医学类","取得全科医师证",0,2,0,{"$f":"SUM(G59:I59)","v":2}]
[{"$nulls":4},"中医学类、中医学","取得执业资格证书、住培证。",0,1,0,1]
[{"$nulls":4},"临床医学类、儿科学",null,0,1,0,1]
[{"$nulls":4},"口腔医学类、临床医学",null,0,1,0,1]
[{"$nulls":4},"超声医学","取得从事相关工作的资格证、执业证",0,1,0,1]
[{"$nulls":4},"公共卫生与预防医学类","取得执业资格证书",0,1,0,1]
[null,null,"护理岗",null,"护理学","取得护士资格证书，并通过护士执业资格考试",0,0,3,3]
[null,null,"技师岗",null,"康复治疗",null,0,1,0,1]
["合计",{"$nulls":5},{"$f":"SUM(G4:G66)","v":61},{"$f":"SUM(H4:H66)","v":52},{"$f":"SUM(I4:I66)","v":3},{"$f":"SUM(J4:J66)","v":116}]